[Event "DVM U16w 2024"]
[Site "Neumuenster"]
[Date "2024.12.29"]
[Round "6"]
[White "Rafikova, Ailin"]
[Black "Stepanjan, Tatevik Mia"]
[Result "1-0"]
[ECO "B24"]
[WhiteElo "1735"]
[BlackElo "1572"]
[Annotator "NA RC"]
[PlyCount "105"]
[EventDate "2024.12.23"]
[EventType "team-tourn"]
[EventRounds "7"]
[EventCountry "GER"]
[SourceTitle "playchess.com"]
[Source "ChessBase"]
[SourceQuality "1"]
[TimeControl "40/5400+30:1800+30"]

1. e4 {[%emt 0:00:02]} c5 {[%emt 0:00:10]} 2. Nc3 {[%emt 0:00:04]} Nc6 {[%emt 0:00:09]} 3. g3 {[%emt 0:00:04]} g6 {[%emt 0:00:17]} 4. Bg2 {[%emt 0:00:11]} Bg7 {[%emt 0:00:23]} 5. d3 {[%emt 0:00:34]} e6 {[%emt 0:00:32]} 6. Nge2 {[%emt 0:00:20]} Nge7 {[%emt 0:00:20]} 7. Be3 {[%emt 0:01:38]} b6 {[%emt 0:00:54]} 8. Qd2 {[%emt 0:00:54]} O-O {[%emt 0:06:25]} 9. Bh6 {[%emt 0:03:06]} d5 {[%emt 0:01:12]} 10. Bxg7 {[%emt 0:03:01]} Kxg7 {[%emt 0:00:10]} 11. exd5 {[%emt 0:01:30]} exd5 {[%emt 0:01:39]} 12. d4 {[%emt 0:01:34]} Ba6 {[%emt 0:19:43]} 13. dxc5 {[%emt 0:07:27]} Bxe2 {[%emt 0:01:17]} 14. Qxe2 {[%emt 0:03:39]} bxc5 {[%emt 0:01:10]} 15. O-O {[%emt 0:03:17]} Rb8 {[%emt 0:02:52]} 16. Rab1 {[%emt 0:02:56]} Re8 {[%emt 0:04:19]} 17. Qd2 {[%emt 0:06:54]} d4 {[%emt 0:02:17]} 18. Ne4 {[%emt 0:01:19]} c4 {[%emt 0:09:11]} 19. Qe2 {[%emt 0:09:22]} d3 {[%emt 0:11:05]} 20. cxd3 {[%emt 0:05:41]} cxd3 {[%emt 0:00:39]} 21. Qd2 {[%emt 0:03:00]} Qd4 {[%emt 0:02:07]} 22. Qc3 {[%emt 0:08:44]} Qxc3 {[%emt 0:04:26]} 23. Nxc3 {[%emt 0:00:40]} Nd4 {[%emt 0:04:18]} 24. Be4 {[%emt 0:05:52]} d2 {[%emt 0:05:28]} 25. Rfd1 {[%emt 0:03:57]} Rbd8 {[%emt 0:01:12]} 26. Kf1 {[%emt 0:02:11]} Ndf5 {[%emt 0:04:53]} 27. Bg2 {[%emt 0:03:40]} Rd7 {[%emt 0:05:07]} 28. Ne4 {[%emt 0:02:32]} Red8 {[%emt 0:00:25]} 29. g4 {[%emt 0:06:27]} Nh4 {[%emt 0:02:06]} 30. Bh1 {[%emt 0:00:43]} f5 {[%emt 0:01:05]} 31. Nc5 {[%emt 0:02:43]} fxg4 {[%emt 0:07:39]} 32. Nxd7 {[%emt 0:00:35]} Rxd7 {[%emt 0:00:06]} 33. Ke2 {[%emt 0:01:30]} Nef5 {[%emt 0:02:11]} 34. Rxd2 {[%emt 0:02:15]} Re7+ {[%emt 0:01:01]} 35. Kf1 {[%emt 0:02:18]} Nf3 {[%emt 0:00:27]} 36. Bxf3 {[%emt 0:00:47]} gxf3 {[%emt 0:00:09]} 37. Rd3 {[%emt 0:02:37]} Nh4 {[%emt 0:00:18]} 38. Rd4 {[%emt 0:02:08]} g5 {[%emt 0:00:16]} 39. Rbd1 {[%emt 0:01:44]} Kg6 {[%emt 0:00:45]} 40. Rd7 {[%emt 0:01:04]} Re2 {[%emt 0:00:26]} 41. R1d2 {[%emt 0:30:44]} Re5 {[%emt 0:31:11]} 42. Rxa7 {[%emt 0:00:00]} Ng2 {[%emt 0:00:00]} 43. Rd1 {[%emt 0:00:00]} h5 {[%emt 0:00:00]} 44. Rad7 {[%emt 0:00:00]} Re2 {[%emt 0:00:00]} 45. R7d2 {[%emt 0:00:00]} Re7 {[%emt 0:00:00]} 46. a4 {[%emt 0:00:00]} Ra7 {[%emt 0:00:00]} 47. Ra1 {[%emt 0:00:00]} Kf5 {[%emt 0:00:00]} 48. a5 {[%emt 0:00:00]} Nf4 {[%emt 0:00:00]} 49. a6 {[%emt 0:00:00]} Ne6 {[%emt 0:00:00]} 50. b4 {[%emt 0:00:00]} Nc7 {[%emt 0:00:00]} 51. b5 {[%emt 0:00:00]} Ra8 {[%emt 0:00:00]} 52. a7 {[%emt 0:00:00]} Ne6 {[%emt 0:00:00]} 53. b6 {[%emt 0:00:59]} 1-0

[Event "DVM U16w 2024"]
[Site "Neumuenster"]
[Date "2024.12.29"]
[Round "6"]
[White "Shynkar, Daria"]
[Black "Lorenz, Veronika"]
[Result "1/2-1/2"]
[ECO "D31"]
[WhiteElo "1685"]
[BlackElo "1974"]
[Annotator "NA RC"]
[PlyCount "85"]
[EventDate "2024.12.23"]
[EventType "team-tourn"]
[EventRounds "7"]
[EventCountry "GER"]
[SourceTitle "playchess.com"]
[Source "ChessBase"]
[SourceQuality "1"]
[TimeControl "40/5400+30:1800+30"]

1. d4 {[%emt 0:00:01]} d5 {[%emt 0:00:01]} 2. c4 {[%emt 0:00:07]} e6 {[%emt 0:00:01]} 3. Nc3 {[%emt 0:00:06]} h6 {[%emt 0:00:01]} 4. cxd5 {[%emt 0:00:12]} exd5 {[%emt 0:00:01]} 5. Bf4 {[%emt 0:01:22]} Nf6 {[%emt 0:00:02]} 6. e3 {[%emt 0:00:34]} Bd6 {[%emt 0:00:04]} 7. Nge2 {[%emt 0:06:32]} O-O {[%emt 0:02:26]} 8. Bxd6 {[%emt 0:02:10]} Qxd6 {[%emt 0:00:01]} 9. Nf4 {[%emt 0:02:04]} c6 {[%emt 0:03:43]} 10. Bd3 {[%emt 0:02:14]} Re8 {[%emt 0:00:31]} 11. O-O {[%emt 0:00:21]} Nbd7 {[%emt 0:08:24]} 12. Rc1 {[%emt 0:04:23]} Ne4 {[%emt 0:04:29]} 13. Bxe4 {[%emt 0:00:26]} dxe4 {[%emt 0:00:12]} 14. a3 {[%emt 0:06:41]} Nf6 {[%emt 0:04:18]} 15. b4 {[%emt 0:02:22]} a6 {[%emt 0:04:37]} 16. Qc2 {[%emt 0:04:07]} Bf5 {[%emt 0:05:52]} 17. Rfd1 {[%emt 0:02:06]} Rac8 {[%emt 0:11:36]} 18. Qb2 {[%emt 0:02:43]} Red8 {[%emt 0:16:18]} 19. a4 {[%emt 0:04:40]} Nd5 {[%emt 0:02:46]} 20. Ncxd5 {[%emt 0:01:23]} cxd5 {[%emt 0:00:25]} 21. Rc5 {[%emt 0:00:15]} Be6 {[%emt 0:03:25]} 22. Rdc1 {[%emt 0:02:35]} b6 {[%emt 0:06:32]} 23. Nxe6 {[%emt 0:03:48]} Qxe6 {[%emt 0:00:04]} 24. Rc7 {[%emt 0:00:29]} Rxc7 {[%emt 0:04:54]} 25. Rxc7 {[%emt 0:00:10]} Rc8 {[%emt 0:00:01]} 26. Qc3 {[%emt 0:00:34]} Rxc7 {[%emt 0:02:14]} 27. Qxc7 {[%emt 0:00:03]} Qe8 {[%emt 0:06:48]} 28. Qxb6 {[%emt 0:03:24]} Qxa4 {[%emt 0:00:01]} 29. h3 {[%emt 0:00:23]} Qb5 {[%emt 0:03:53]} 30. Qd8+ {[%emt 0:01:29]} Kh7 {[%emt 0:00:03]} 31. Qe7 {[%emt 0:00:14]} f6 {[%emt 0:01:00]} 32. Qc5 {[%emt 0:07:12]} Qb7 {[%emt 0:03:23]} 33. Qd6 {[%emt 0:03:09]} Qb5 {[%emt 0:00:38]} 34. Kh2 {[%emt 0:02:10]} Kg6 {[%emt 0:02:51]} 35. Kg3 {[%emt 0:00:54]} a5 {[%emt 0:01:07]} 36. bxa5 {[%emt 0:03:18]} Qxa5 {[%emt 0:00:01]} 37. Qd7 {[%emt 0:03:29]} Kh7 {[%emt 0:03:10]} 38. Qf5+ {[%emt 0:00:33]} Kh8 {[%emt 0:01:19]} 39. Kg4 {[%emt 0:01:35]} Qd8 {[%emt 0:00:14]} 40. Qe6 {[%emt 0:01:16]} g6 {[%emt 0:01:19]} 41. Qf7 {[%emt 0:32:22]} Qc8+ {[%emt 0:02:01]} 42. Kg3 {[%emt 0:00:00]} Qf5 {[%emt 0:00:16]} 43. Qf8+ {[%emt 0:00:00]} 1/2-1/2

[Event "DVM U16w 2024"]
[Site "Neumuenster"]
[Date "2024.12.29"]
[Round "6"]
[White "Petrosyan, Ani"]
[Black "Guliyeva, Zahra"]
[Result "1-0"]
[ECO "A17"]
[WhiteElo "1683"]
[BlackElo "1053"]
[Annotator "NA RC"]
[PlyCount "93"]
[EventDate "2024.12.23"]
[EventType "team-tourn"]
[EventRounds "7"]
[EventCountry "GER"]
[SourceTitle "playchess.com"]
[Source "ChessBase"]
[SourceQuality "1"]
[TimeControl "40/5400+30:1800+30"]

1. Nf3 {[%emt 0:00:14]} d5 {[%emt 0:00:24]} 2. e3 {[%emt 0:00:32]} Nf6 {[%emt 0:00:11]} 3. c4 {[%emt 0:00:06]} e6 {[%emt 0:00:44]} 4. Nc3 {[%emt 0:00:18]} Bd6 {[%emt 0:00:15]} 5. b3 {[%emt 0:00:21]} O-O {[%emt 0:00:12]} 6. Bb2 {[%emt 0:00:11]} Bd7 {[%emt 0:00:25]} 7. Be2 {[%emt 0:00:47]} Nc6 {[%emt 0:00:17]} 8. O-O {[%emt 0:00:33]} h6 {[%emt 0:12:27]} 9. d4 {[%emt 0:01:13]} Re8 {[%emt 0:01:42]} 10. Rc1 {[%emt 0:00:38]} Ne7 {[%emt 0:05:40]} 11. c5 {[%emt 0:02:11]} Bxc5 {[%emt 0:02:44]} 12. dxc5 {[%emt 0:00:31]} Bc6 {[%emt 0:00:54]} 13. Ne5 {[%emt 0:01:27]} Rc8 {[%emt 0:04:14]} 14. Qc2 {[%emt 0:02:26]} b6 {[%emt 0:06:37]} 15. Ba6 {[%emt 0:02:56]} Rb8 {[%emt 0:00:09]} 16. Nb5 {[%emt 0:01:38]} Bb7 {[%emt 0:01:29]} 17. Bxb7 {[%emt 0:00:27]} Rxb7 {[%emt 0:00:07]} 18. cxb6 {[%emt 0:00:28]} Rxb6 {[%emt 0:00:18]} 19. Nxc7 {[%emt 0:01:03]} Rf8 {[%emt 0:00:42]} 20. Ba3 {[%emt 0:00:58]} Rb8 {[%emt 0:01:14]} 21. Bxe7 {[%emt 0:02:42]} Qxe7 {[%emt 0:00:14]} 22. Qc5 {[%emt 0:00:10]} Qxc5 {[%emt 0:01:10]} 23. Rxc5 {[%emt 0:00:06]} Rbc8 {[%emt 0:00:08]} 24. Rfc1 {[%emt 0:00:22]} Ne4 {[%emt 0:00:16]} 25. R5c2 {[%emt 0:00:18]} Nd6 {[%emt 0:03:35]} 26. Na6 {[%emt 0:00:31]} Rxc2 {[%emt 0:01:25]} 27. Rxc2 {[%emt 0:00:05]} Ne4 {[%emt 0:00:15]} 28. f3 {[%emt 0:00:34]} Nf6 {[%emt 0:00:27]} 29. Rc7 {[%emt 0:00:10]} Ne8 {[%emt 0:01:00]} 30. Rxa7 {[%emt 0:00:18]} Nd6 {[%emt 0:00:11]} 31. Rd7 {[%emt 0:00:25]} Nf5 {[%emt 0:00:26]} 32. e4 {[%emt 0:00:11]} dxe4 {[%emt 0:00:08]} 33. fxe4 {[%emt 0:00:04]} Ne3 {[%emt 0:00:17]} 34. Nc5 {[%emt 0:00:22]} Nc2 {[%emt 0:00:28]} 35. a4 {[%emt 0:00:16]} Nb4 {[%emt 0:00:10]} 36. Rb7 {[%emt 0:00:16]} Nc2 {[%emt 0:00:22]} 37. a5 {[%emt 0:00:06]} Ne3 {[%emt 0:00:04]} 38. a6 {[%emt 0:00:04]} Nc2 {[%emt 0:00:55]} 39. a7 {[%emt 0:00:07]} Na3 {[%emt 0:00:05]} 40. Rb8 {[%emt 0:00:06]} Rxb8 {[%emt 0:00:11]} 41. axb8=Q+ {[%emt 0:00:08]} Kh7 {[%emt 0:30:09]} 42. Nxf7 {[%emt 0:30:15]} Kg6 {[%emt 0:00:07]} 43. Qf4 {[%emt 0:00:14]} Kh7 {[%emt 0:00:12]} 44. Nxe6 {[%emt 0:00:09]} Kg8 {[%emt 0:00:10]} 45. Nxh6+ {[%emt 0:00:14]} gxh6 {[%emt 0:00:12]} 46. Qf8+ {[%emt 0:00:05]} Kh7 {[%emt 0:00:05]} 47. Qg7# {[%emt 0:00:34]} 1-0

[Event "DVM U16w 2024"]
[Site "Neumuenster"]
[Date "2024.12.29"]
[Round "6"]
[White "Hergenroeder, Cora"]
[Black "Amelang, Jamie Alice"]
[Result "1/2-1/2"]
[ECO "D94"]
[WhiteElo "1681"]
[BlackElo "1634"]
[Annotator "NA RC"]
[PlyCount "58"]
[EventDate "2024.12.23"]
[EventType "team-tourn"]
[EventRounds "7"]
[EventCountry "GER"]
[SourceTitle "playchess.com"]
[Source "ChessBase"]
[SourceQuality "1"]
[TimeControl "40/5400+30:1800+30"]

1. d4 {[%emt 0:00:02]} Nf6 {[%emt 0:00:05]} 2. c4 {[%emt 0:00:07]} g6 {[%emt 0:00:06]} 3. Nc3 {[%emt 0:00:04]} d5 {[%emt 0:00:06]} 4. e3 {[%emt 0:00:59]} Bg7 {[%emt 0:00:24]} 5. Nf3 {[%emt 0:02:05]} O-O {[%emt 0:01:48]} 6. Be2 {[%emt 0:01:38]} Bf5 {[%emt 0:04:19]} 7. Qb3 {[%emt 0:02:24]} dxc4 {[%emt 0:05:30]} 8. Bxc4 {[%emt 0:04:43]} b6 {[%emt 0:08:23]} 9. Ne5 {[%emt 0:14:44]} Qe8 {[%emt 0:05:20]} 10. Nb5 {[%emt 0:10:42]} Na6 {[%emt 0:12:54]} 11. Qa3 {[%emt 0:16:29]} Bc8 {[%emt 0:09:01]} 12. Nc3 {[%emt 0:20:24]} Nb8 {[%emt 0:03:46]} 13. Qb3 {[%emt 0:06:42]} e6 {[%emt 0:03:54]} 14. Bd2 {[%emt 0:01:31]} c6 {[%emt 0:10:29]} 15. O-O {[%emt 0:00:15]} Nfd7 {[%emt 0:01:23]} 16. Nxd7 {[%emt 0:02:42]} Qxd7 {[%emt 0:07:10]} 17. Ne4 {[%emt 0:01:34]} Bb7 {[%emt 0:01:17]} 18. Ng3 {[%emt 0:02:30]} Ba6 {[%emt 0:04:42]} 19. Bxa6 {[%emt 0:00:51]} Nxa6 {[%emt 0:00:07]} 20. Bc3 {[%emt 0:01:53]} Rfe8 {[%emt 0:03:36]} 21. Rfd1 {[%emt 0:01:06]} Rad8 {[%emt 0:00:39]} 22. Rac1 {[%emt 0:01:27]} Qb7 {[%emt 0:02:02]} 23. Ne2 {[%emt 0:01:25]} Rd7 {[%emt 0:03:10]} 24. Qc2 {[%emt 0:01:23]} Rc8 {[%emt 0:05:26]} 25. Qb1 {[%emt 0:01:27]} c5 {[%emt 0:00:46]} 26. dxc5 {[%emt 0:00:34]} Rxc5 {[%emt 0:00:32]} 27. Bxg7 {[%emt 0:01:18]} Kxg7 {[%emt 0:00:25]} 28. Rxc5 {[%emt 0:01:31]} Nxc5 {[%emt 0:00:07]} 29. Nc3 {[%emt 0:00:45]} Rxd1+ {[%emt 0:01:01]} 1/2-1/2

[Event "DVM U16w 2024"]
[Site "Neumuenster"]
[Date "2024.12.29"]
[Round "6"]
[White "Huber, Laura"]
[Black "Schmidt, Sophie"]
[Result "1-0"]
[ECO "D02"]
[WhiteElo "1679"]
[BlackElo "1695"]
[Annotator "NA RC"]
[PlyCount "55"]
[EventDate "2024.12.23"]
[EventType "team-tourn"]
[EventRounds "7"]
[EventCountry "GER"]
[SourceTitle "playchess.com"]
[Source "ChessBase"]
[SourceQuality "1"]
[TimeControl "40/5400+30:1800+30"]

1. d4 {[%emt 0:00:03]} d5 {[%emt 0:00:04]} 2. Bf4 {[%emt 0:00:20]} Nf6 {[%emt 0:00:14]} 3. Nf3 {[%emt 0:00:37]} c6 {[%emt 0:01:14]} 4. c3 {[%emt 0:02:21]} g6 {[%emt 0:00:59]} 5. h3 {[%emt 0:06:48]} Bg7 {[%emt 0:01:07]} 6. e3 {[%emt 0:01:06]} O-O {[%emt 0:01:37]} 7. Bd3 {[%emt 0:04:29]} Nbd7 {[%emt 0:02:48]} 8. Nbd2 {[%emt 0:02:33]} a6 {[%emt 0:05:35]} 9. Qc2 {[%emt 0:05:43]} c5 {[%emt 0:07:46]} 10. O-O {[%emt 0:07:38]} Re8 {[%emt 0:08:35]} 11. Rfe1 {[%emt 0:08:30]} c4 {[%emt 0:08:08]} 12. Bf1 {[%emt 0:01:33]} b5 {[%emt 0:06:51]} 13. e4 {[%emt 0:01:37]} dxe4 {[%emt 0:05:16]} 14. Nxe4 {[%emt 0:00:51]} Nxe4 {[%emt 0:00:20]} 15. Qxe4 {[%emt 0:00:22]} Nf6 {[%emt 0:00:47]} 16. Qxa8 {[%emt 0:02:23]} Qd7 {[%emt 0:07:52]} 17. Ne5 {[%emt 0:04:37]} Qf5 {[%emt 0:09:59]} 18. Qf3 {[%emt 0:02:27]} Nh5 {[%emt 0:08:54]} 19. Bh2 {[%emt 0:04:19]} Qxf3 {[%emt 0:01:56]} 20. Nxf3 {[%emt 0:00:25]} e6 {[%emt 0:01:14]} 21. Ne5 {[%emt 0:03:03]} Nf6 {[%emt 0:02:47]} 22. Be2 {[%emt 0:03:58]} Nd5 {[%emt 0:03:22]} 23. Bf3 {[%emt 0:01:12]} h5 {[%emt 0:02:46]} 24. Nxg6 {[%emt 0:06:07]} Nxc3 {[%emt 0:05:39]} 25. bxc3 {[%emt 0:00:43]} fxg6 {[%emt 0:00:15]} 26. Be5 {[%emt 0:04:19]} Bh6 {[%emt 0:02:09]} 27. Re2 {[%emt 0:01:50]} a5 {[%emt 0:03:13]} 28. Bc6 {[%emt 0:01:31]} 1-0

[Event "DVM U16w 2024"]
[Site "Neumuenster"]
[Date "2024.12.29"]
[Round "6"]
[White "Vasilieva, Sophie Victoria"]
[Black "Breja, Eva"]
[Result "0-1"]
[ECO "E67"]
[WhiteElo "1677"]
[BlackElo "1556"]
[Annotator "NA RC"]
[PlyCount "106"]
[EventDate "2024.12.23"]
[EventType "team-tourn"]
[EventRounds "7"]
[EventCountry "GER"]
[SourceTitle "playchess.com"]
[Source "ChessBase"]
[SourceQuality "1"]
[TimeControl "40/5400+30:1800+30"]

1. d4 {[%emt 0:00:01]} Nf6 {[%emt 0:00:16]} 2. c4 {[%emt 0:00:11]} g6 {[%emt 0:00:22]} 3. Nc3 {[%emt 0:00:29]} Bg7 {[%emt 0:00:26]} 4. Nf3 {[%emt 0:00:37]} O-O {[%emt 0:00:31]} 5. g3 {[%emt 0:00:50]} d6 {[%emt 0:00:24]} 6. Bg2 {[%emt 0:00:19]} Nbd7 {[%emt 0:01:48]} 7. O-O {[%emt 0:02:16]} e5 {[%emt 0:02:31]} 8. dxe5 {[%emt 0:04:59]} dxe5 {[%emt 0:00:13]} 9. e4 {[%emt 0:00:16]} Ne8 {[%emt 0:06:01]} 10. Be3 {[%emt 0:01:48]} f5 {[%emt 0:01:44]} 11. Bg5 {[%emt 0:02:20]} Nef6 {[%emt 0:00:56]} 12. Qd3 {[%emt 0:03:50]} h6 {[%emt 0:01:50]} 13. Bxf6 {[%emt 0:01:19]} Qxf6 {[%emt 0:04:03]} 14. Nd5 {[%emt 0:02:01]} Qd6 {[%emt 0:02:26]} 15. Rfd1 {[%emt 0:02:35]} Nc5 {[%emt 0:04:31]} 16. Qd2 {[%emt 0:01:32]} Nxe4 {[%emt 0:01:45]} 17. Qd3 {[%emt 0:00:49]} Qc5 {[%emt 0:08:50]} 18. Rf1 {[%emt 0:01:12]} Be6 {[%emt 0:07:49]} 19. Rad1 {[%emt 0:01:37]} c6 {[%emt 0:03:52]} 20. Nc7 {[%emt 0:00:50]} Bxc4 {[%emt 0:02:16]} 21. Qc2 {[%emt 0:01:25]} Bxf1 {[%emt 0:06:52]} 22. Qxc5 {[%emt 0:01:09]} Nxc5 {[%emt 0:00:07]} 23. Nxa8 {[%emt 0:00:13]} Bxg2 {[%emt 0:00:17]} 24. Kxg2 {[%emt 0:00:19]} Rxa8 {[%emt 0:00:05]} 25. b4 {[%emt 0:00:30]} Na6 {[%emt 0:00:36]} 26. Rd7 {[%emt 0:00:11]} Nxb4 {[%emt 0:06:35]} 27. Rxb7 {[%emt 0:00:21]} Nxa2 {[%emt 0:00:11]} 28. Re7 {[%emt 0:00:15]} e4 {[%emt 0:01:22]} 29. Nh4 {[%emt 0:00:26]} Bf6 {[%emt 0:00:17]} 30. Re6 {[%emt 0:00:19]} Bxh4 {[%emt 0:00:48]} 31. gxh4 {[%emt 0:00:09]} Kg7 {[%emt 0:00:10]} 32. Re7+ {[%emt 0:00:13]} Kf6 {[%emt 0:00:26]} 33. Rc7 {[%emt 0:00:05]} Nb4 {[%emt 0:00:16]} 34. Kg3 {[%emt 0:00:17]} a5 {[%emt 0:00:36]} 35. Rb7 {[%emt 0:00:16]} Nd5 {[%emt 0:01:15]} 36. f4 {[%emt 0:01:00]} a4 {[%emt 0:00:59]} 37. Kf2 {[%emt 0:00:31]} a3 {[%emt 0:00:00]} 38. Rb1 {[%emt 0:00:14]} Nxf4 {[%emt 0:00:33]} 39. Ra1 {[%emt 0:00:08]} Ke5 {[%emt 0:00:20]} 40. Ke3 {[%emt 0:00:09]} Ng2+ {[%emt 0:00:13]} 41. Kd2 {[%emt 0:30:07]} Nxh4 {[%emt 0:30:10]} 42. Kc2 {[%emt 0:00:12]} f4 {[%emt 0:00:14]} 43. Kd2 {[%emt 0:00:15]} Nf3+ {[%emt 0:00:09]} 44. Ke2 {[%emt 0:00:06]} Nxh2 {[%emt 0:00:12]} 45. Kf2 {[%emt 0:00:06]} Ng4+ {[%emt 0:00:07]} 46. Ke2 {[%emt 0:00:06]} f3+ {[%emt 0:00:16]} 47. Kf1 {[%emt 0:00:07]} a2 {[%emt 0:00:44]} 48. Ke1 {[%emt 0:00:19]} e3 {[%emt 0:00:10]} 49. Kf1 {[%emt 0:00:06]} Ke4 {[%emt 0:00:13]} 50. Ke1 {[%emt 0:00:11]} Kd3 {[%emt 0:00:33]} 51. Kf1 {[%emt 0:00:25]} Kc2 {[%emt 0:00:12]} 52. Rxa2+ {[%emt 0:00:14]} Rxa2 {[%emt 0:00:10]} 53. Kg1 {[%emt 0:00:38]} Ra1# {[%emt 0:00:11]} 0-1

[Event "DVM U16w 2024"]
[Site "Neumuenster"]
[Date "2024.12.29"]
[Round "6"]
[White "Hoffmann, Svenja"]
[Black "Margaryan, Mane"]
[Result "1-0"]
[ECO "B45"]
[WhiteElo "1643"]
[BlackElo "1533"]
[Annotator "NA RC"]
[PlyCount "87"]
[EventDate "2024.12.23"]
[EventType "team-tourn"]
[EventRounds "7"]
[EventCountry "GER"]
[SourceTitle "playchess.com"]
[Source "ChessBase"]
[SourceQuality "1"]
[TimeControl "40/5400+30:1800+30"]

1. e4 {[%emt 0:00:03]} c5 {[%emt 0:00:03]} 2. Nf3 {[%emt 0:00:52]} e6 {[%emt 0:00:15]} 3. d4 {[%emt 0:00:33]} cxd4 {[%emt 0:00:06]} 4. Nxd4 {[%emt 0:00:06]} Nf6 {[%emt 0:00:42]} 5. Nc3 {[%emt 0:00:44]} Nc6 {[%emt 0:01:13]} 6. f3 {[%emt 0:01:59]} Bc5 {[%emt 0:03:58]} 7. Be3 {[%emt 0:01:59]} Bb4 {[%emt 0:17:38]} 8. Qd2 {[%emt 0:05:12]} e5 {[%emt 0:03:10]} 9. Nf5 {[%emt 0:05:29]} Rg8 {[%emt 0:11:22]} 10. Nd6+ {[%emt 0:04:19]} Ke7 {[%emt 0:00:54]} 11. Nf5+ {[%emt 0:01:16]} Ke8 {[%emt 0:02:16]} 12. Bc4 {[%emt 0:03:04]} d5 {[%emt 0:09:23]} 13. exd5 {[%emt 0:08:06]} Bxf5 {[%emt 0:05:08]} 14. dxc6 {[%emt 0:03:59]} bxc6 {[%emt 0:06:14]} 15. g4 {[%emt 0:12:28]} Qxd2+ {[%emt 0:03:06]} 16. Kxd2 {[%emt 0:00:23]} Rd8+ {[%emt 0:01:04]} 17. Bd3 {[%emt 0:00:42]} Bxd3 {[%emt 0:05:36]} 18. cxd3 {[%emt 0:00:12]} e4 {[%emt 0:05:41]} 19. fxe4 {[%emt 0:00:54]} Nxe4+ {[%emt 0:02:16]} 20. Kc2 {[%emt 0:00:08]} Bc5 {[%emt 0:01:25]} 21. Nxe4 {[%emt 0:00:52]} Bxe3 {[%emt 0:00:21]} 22. Rae1 {[%emt 0:00:19]} Kd7 {[%emt 0:07:07]} 23. Rxe3 {[%emt 0:00:24]} Rge8 {[%emt 0:00:51]} 24. Rf1 {[%emt 0:00:35]} f6 {[%emt 0:01:33]} 25. g5 {[%emt 0:00:55]} fxg5 {[%emt 0:04:08]} 26. Rf7+ {[%emt 0:00:16]} Ke6 {[%emt 0:02:07]} 27. Nxg5+ {[%emt 0:00:11]} Kd6 {[%emt 0:00:34]} 28. Rxe8 {[%emt 0:00:25]} Rxe8 {[%emt 0:00:09]} 29. Ne4+ {[%emt 0:00:07]} Kd5 {[%emt 0:00:30]} 30. Rxg7 {[%emt 0:01:14]} Rf8 {[%emt 0:00:39]} 31. Rxh7 {[%emt 0:00:21]} c5 {[%emt 0:00:21]} 32. Rh5+ {[%emt 0:00:21]} Ke6 {[%emt 0:00:50]} 33. Rxc5 {[%emt 0:00:13]} Rh8 {[%emt 0:00:16]} 34. Ra5 {[%emt 0:00:19]} Rxh2+ {[%emt 0:00:20]} 35. Kc3 {[%emt 0:00:07]} Rh8 {[%emt 0:00:48]} 36. Rxa7 {[%emt 0:00:09]} Rc8+ {[%emt 0:00:41]} 37. Kd4 {[%emt 0:00:19]} Rd8+ {[%emt 0:00:49]} 38. Kc4 {[%emt 0:00:09]} Rc8+ {[%emt 0:00:21]} 39. Nc5+ {[%emt 0:00:05]} Kd6 {[%emt 0:01:28]} 40. d4 {[%emt 0:00:12]} Kc6 {[%emt 0:00:57]} 41. b4 {[%emt 0:30:16]} Kb6 {[%emt 0:31:20]} 42. Rb7+ {[%emt 0:00:11]} Kc6 {[%emt 0:00:22]} 43. b5+ {[%emt 0:00:45]} Kd6 {[%emt 0:00:16]} 44. Rd7# {[%emt 0:00:17]} 1-0

[Event "DVM U16w 2024"]
[Site "Neumuenster"]
[Date "2024.12.29"]
[Round "6"]
[White "Modali, Nikhilamrutha"]
[Black "Sayouf, Rafif"]
[Result "0-1"]
[ECO "C58"]
[WhiteElo "1640"]
[BlackElo "1680"]
[Annotator "NA RC"]
[PlyCount "112"]
[EventDate "2024.12.23"]
[EventType "team-tourn"]
[EventRounds "7"]
[EventCountry "GER"]
[SourceTitle "playchess.com"]
[Source "ChessBase"]
[SourceQuality "1"]
[TimeControl "40/5400+30:1800+30"]

1. e4 {[%emt 0:00:02]} e5 {[%emt 0:00:08]} 2. Nf3 {[%emt 0:00:03]} Nc6 {[%emt 0:00:05]} 3. Bc4 {[%emt 0:00:03]} Nf6 {[%emt 0:00:08]} 4. Ng5 {[%emt 0:00:07]} d5 {[%emt 0:00:08]} 5. exd5 {[%emt 0:00:04]} Na5 {[%emt 0:00:50]} 6. Bb5+ {[%emt 0:00:14]} Bd7 {[%emt 0:00:14]} 7. Qe2 {[%emt 0:05:23]} Bd6 {[%emt 0:07:08]} 8. d4 {[%emt 0:02:50]} O-O {[%emt 0:08:28]} 9. Bxd7 {[%emt 0:15:22]} Qxd7 {[%emt 0:00:35]} 10. dxe5 {[%emt 0:01:22]} Bxe5 {[%emt 0:00:18]} 11. O-O {[%emt 0:01:00]} Rfe8 {[%emt 0:02:19]} 12. Qf3 {[%emt 0:04:51]} Qxd5 {[%emt 0:00:28]} 13. Qxd5 {[%emt 0:07:21]} Nxd5 {[%emt 0:00:51]} 14. Nf3 {[%emt 0:04:08]} Bf6 {[%emt 0:03:28]} 15. c3 {[%emt 0:06:39]} b5 {[%emt 0:10:26]} 16. Rd1 {[%emt 0:10:03]} Rad8 {[%emt 0:02:13]} 17. Bg5 {[%emt 0:07:41]} Bxg5 {[%emt 0:00:13]} 18. Nxg5 {[%emt 0:00:07]} h6 {[%emt 0:00:24]} 19. Nf3 {[%emt 0:00:40]} Nf4 {[%emt 0:03:40]} 20. Rxd8 {[%emt 0:01:14]} Rxd8 {[%emt 0:00:12]} 21. Na3 {[%emt 0:02:37]} a6 {[%emt 0:02:38]} 22. Kf1 {[%emt 0:01:00]} c5 {[%emt 0:01:47]} 23. b4 {[%emt 0:02:52]} cxb4 {[%emt 0:01:02]} 24. cxb4 {[%emt 0:00:09]} Nc4 {[%emt 0:03:05]} 25. Nxc4 {[%emt 0:02:43]} bxc4 {[%emt 0:00:26]} 26. Rc1 {[%emt 0:03:46]} Rc8 {[%emt 0:00:15]} 27. g3 {[%emt 0:02:27]} Nd3 {[%emt 0:00:17]} 28. Rc3 {[%emt 0:01:07]} Nxb4 {[%emt 0:01:16]} 29. a4 {[%emt 0:02:15]} Nd5 {[%emt 0:00:21]} 30. Rc1 {[%emt 0:00:43]} c3 {[%emt 0:00:58]} 31. Nd2 {[%emt 0:03:34]} c2 {[%emt 0:00:44]} 32. Nf3 {[%emt 0:01:51]} Nb4 {[%emt 0:02:33]} 33. Ne1 {[%emt 0:00:28]} Rd8 {[%emt 0:01:16]} 34. Nxc2 {[%emt 0:00:44]} Rc8 {[%emt 0:00:23]} 35. Nxb4 {[%emt 0:01:53]} Rxc1+ {[%emt 0:00:08]} 36. Kg2 {[%emt 0:00:03]} a5 {[%emt 0:00:16]} 37. Nd3 {[%emt 0:00:28]} Rc4 {[%emt 0:00:18]} 38. Kf3 {[%emt 0:02:08]} Rxa4 {[%emt 0:00:15]} 39. Ke3 {[%emt 0:00:13]} Rc4 {[%emt 0:00:46]} 40. Kd2 {[%emt 0:00:33]} Kf8 {[%emt 0:00:55]} 41. Nb2 {[%emt 0:30:42]} Rc6 {[%emt 0:30:36]} 42. h4 {[%emt 0:03:23]} Ke7 {[%emt 0:01:44]} 43. Kd3 {[%emt 0:00:51]} Ke6 {[%emt 0:01:03]} 44. f4 {[%emt 0:00:28]} Kd5 {[%emt 0:00:42]} 45. g4 {[%emt 0:00:30]} g6 {[%emt 0:00:54]} 46. Nd1 {[%emt 0:00:30]} Rb6 {[%emt 0:01:23]} 47. Ne3+ {[%emt 0:01:21]} Kc5 {[%emt 0:00:49]} 48. Nc4 {[%emt 0:01:16]} Rb3+ {[%emt 0:00:17]} 49. Ke4 {[%emt 0:00:29]} Kxc4 {[%emt 0:00:07]} 50. Ke5 {[%emt 0:00:11]} Rb6 {[%emt 0:00:12]} 51. f5 {[%emt 0:00:25]} a4 {[%emt 0:00:11]} 52. fxg6 {[%emt 0:00:12]} fxg6 {[%emt 0:00:05]} 53. h5 {[%emt 0:00:40]} g5 {[%emt 0:00:12]} 54. Kf5 {[%emt 0:00:06]} a3 {[%emt 0:00:06]} 55. Ke5 {[%emt 0:00:09]} a2 {[%emt 0:00:05]} 56. Kf5 {[%emt 0:00:04]} a1=Q {[%emt 0:00:15]} 0-1